fUSD/lending_fUSD_20240822
["ID","MTS","AMOUNT","RATE_DAILY","PERIOD"]
[335539992,1724317832500,-700.0,0.000105,3]
[335539994,1724317832510,-150.0,0.00010533,2]
[335539995,1724317832519,-150.0,0.00010535,2]
[335539997,1724317832528,-150.0,0.00010564,2]
[335539998,1724317832538,-150.0,0.00010578,2]
[335539999,1724317832547,-150.0,0.00010584,2]
[335540000,1724317832557,-150.0,0.00010585,2]
[335540001,1724317832566,-150.0,0.00010588,2]
[335540002,1724317832575,-700.0,0.000106,3]
[335540003,1724317832584,-150.0,0.00010601,2]
[335540004,1724317832594,-150.0,0.00010604,2]
[335540005,1724317832603,-150.0,0.00010615,2]
[335540006,1724317832613,-150.0,0.00010617,2]
[335540007,1724317832622,-150.0,0.00010624,2]
[335540008,1724317832631,-150.0,0.00010635,2]
[335540009,1724317832641,-150.0,0.00010638,2]
[335540010,1724317832651,-150.0,0.00010644,2]
[335540011,1724317832660,-150.0,0.00010646,2]
[335540012,1724317832669,-150.0,0.00010663,2]
[335540013,1724317832679,-236.7166,0.00010678,2]
[335540014,1724317832688,-23737.16126312,0.00010679,2]
[335540015,1724317832697,-150.0,0.00010681,2]
[335540016,1724317832706,-333.43336323,0.00010688,2]
[335540017,1724317832715,-500.0,0.00010688,2]
[335540018,1724317832725,-500.0,0.00010688,2]
[335540019,1724317832734,-500.0,0.00010688,2]
[335540020,1724317832744,-500.0,0.00010688,2]
[335540021,1724317832754,-500.0,0.00010688,2]
[335540022,1724317832763,-592.49248734,0.00010688,2]
[335540023,1724317832773,-500.0,0.00010688,2]
[335540024,1724317832782,-500.0,0.00010688,2]
[335540025,1724317832791,-3607.5151,0.00010689,2]
[335540026,1724317832801,-278.709,0.00010689,2]
[335540027,1724317832810,-66822.65041961,0.00010689,2]
[335540034,1724317838170,-155.52427581,0.00010009,2]
[335540035,1724317838180,-326.42087931,0.00010688,2]
[335540036,1724317838232,-173.57912069,0.00010688,2]
[335540037,1724317838241,-527.77655009,0.00010688,2]
[335540038,1724317838250,-12599.99065806,0.00010689,2]
[335540039,1724317838262,-16792.55808578,0.00010689,2]
[335540040,1724317838273,-467.14661128,0.00010689,2]
[335540041,1724317838288,-8899.80772527,0.00010689,2]
[335540042,1724317838297,-1670.44654337,0.00010699,2]
[335540043,1724317838306,-700.0,0.000107,3]
[335540044,1724317838315,-347.44672215,0.000107,2]
[335540045,1724317838326,-295.9685726,0.000107,2]
[335540046,1724317838335,-150.0,0.00010711,2]
[335540047,1724317838345,-1321.45533728,0.00010713,2]
[335540048,1724317838356,-268.66,0.00010716,2]
[335540049,1724317838366,-150.0,0.00010725,2]
[335540050,1724317838375,-150.0,0.00010736,2]
[335540051,1724317838384,-150.0,0.0001074,2]
[335540052,1724317838393,-150.0,0.00010746,2]
[335540053,1724317838402,-1138.0,0.00010748,2]
[335540054,1724317838412,-381.28911618,0.00010748,2]
[335540055,1724317838423,-65.71088382,0.00010748,2]
[335540056,1724317838433,-556.0,0.00010748,2]
[335540057,1724317838442,-810.0,0.00010748,2]
[335540058,1724317838451,-1897.0,0.00010748,2]
[335540059,1724317838460,-153.311,0.00010748,2]
[335540060,1724317838470,-552.808,0.00010748,2]
[335540061,1724317838479,-150.0,0.00010753,2]
[335540062,1724317838488,-150.0,0.00010772,2]
[335540063,1724317838497,-150.0,0.00010774,2]
[335540064,1724317838506,-2312.41209563,0.00010778,2]
[335540066,1724317838518,-1006.58790437,0.00010778,2]
[335540068,1724317838527,-47.42209988,0.00010778,2]
[335540071,1724317838543,-1114.57790012,0.00010778,2]
[335540073,1724317838551,-248.0,0.00010778,2]
[335540075,1724317838561,-764.0,0.00010778,2]
[335540077,1724317838570,-1205.0,0.00010778,2]
[335540079,1724317838579,-5606.10037896,0.00010778,2]
[335540132,1724317840535,-669.44937468,0.00010778,2]
[335540133,1724317840551,-15503.45024636,0.00010778,2]
[335540134,1724317840560,-1674.0,0.00010778,2]
[335540135,1724317840569,-3728.0,0.00010778,2]
[335540136,1724317840578,-1606.66119364,0.00010778,2]
[335540137,1724317840591,-3621.02882917,0.00010778,2]
[335540138,1724317840602,-619.30997719,0.00010778,2]
[335540139,1724317840612,-315.235,0.00010778,2]
[335540140,1724317840621,-166.4052041,0.00010778,2]
[335540141,1724317840632,-771.144,0.00010778,2]
[335540143,1724317840643,-139.4507959,0.00010778,2]
[335540145,1724317840654,-150.0,0.00010783,2]
[335540147,1724317840664,-150.0,0.00010785,2]
[335540149,1724317840674,-500.0,0.00010787,2]
[335540151,1724317840684,-500.0,0.00010787,2]
[335540152,1724317840693,-500.0,0.00010787,2]
[335540155,1724317840703,-500.0,0.00010787,2]
[335540157,1724317840712,-500.0,0.00010787,2]
[335540160,1724317840721,-500.0,0.00010787,2]
[335540163,1724317840731,-500.0,0.00010787,2]
[335540166,1724317840740,-500.0,0.00010787,2]
[335540168,1724317840748,-500.0,0.00010787,2]
[335540170,1724317840758,-500.0,0.00010787,2]
[335540173,1724317840768,-500.0,0.00010787,2]
[335540176,1724317840778,-500.0,0.00010787,2]
[335540179,1724317840787,-500.0,0.00010787,2]
[335540182,1724317840797,-500.0,0.00010787,2]
[335540184,1724317840806,-500.0,0.00010787,2]
[335540187,1724317840815,-500.0,0.00010787,2]
[335540190,1724317840825,-500.0,0.00010787,2]
[335540193,1724317840834,-500.0,0.00010787,2]
[335540195,1724317840843,-489.66822223,0.00010787,2]
[335540197,1724317840853,-500.0,0.00010787,2]
[335540198,1724317840862,-514.83,0.00010788,2]
[335540200,1724317840871,-769.94,0.00010788,2]
[335540202,1724317840881,-642.16,0.00010788,2]
[335540204,1724317840890,-500.0,0.00010788,2]
[335540206,1724317840900,-662.62,0.00010788,2]
[335540208,1724317840911,-500.0,0.00010788,2]
[335540210,1724317840920,-500.0,0.00010788,2]
[335540212,1724317840929,-500.0,0.00010788,2]
[335540214,1724317840939,-500.0,0.00010788,2]
[335540216,1724317840948,-500.0,0.00010788,2]
[335540218,1724317840958,-500.0,0.00010788,2]
[335540219,1724317840967,-500.0,0.00010788,2]
[335540221,1724317840976,-500.0,0.00010788,2]
[335540223,1724317840986,-508.59,0.00010788,2]
[335540224,1724317840995,-502.42366114,0.00010788,2]
[335540225,1724317841004,-526.76387363,0.00010788,2]
[335540226,1724317841013,-500.0,0.00010788,2]
[335540227,1724317841023,-500.0,0.00010788,2]
[335540228,1724317841032,-525.77158924,0.00010788,2]
[335540229,1724317841041,-516.37378512,0.00010788,2]
[335540230,1724317841050,-508.13148806,0.00010788,2]
[335540231,1724317841060,-500.0,0.00010788,2]
[335540232,1724317841069,-500.0,0.00010788,2]
[335540233,1724317841078,-531.60401642,0.00010788,2]
[335540234,1724317841087,-500.0,0.00010788,2]
[335540235,1724317841097,-500.0,0.00010788,2]
[335540236,1724317841106,-510.68327402,0.00010788,2]
[335540237,1724317841115,-500.0,0.00010788,2]
[335540238,1724317841124,-500.0,0.00010788,2]
[335540239,1724317841134,-513.05698221,0.00010788,2]
[335540240,1724317841143,-509.46727685,0.00010788,2]
[335540241,1724317841152,-513.03503672,0.00010788,2]
[335540242,1724317841162,-500.0,0.00010788,2]
[335540243,1724317841172,-500.0,0.00010788,2]
[335540244,1724317841181,-500.0,0.00010788,2]
[335540245,1724317841190,-500.0,0.00010788,2]
[335540246,1724317841199,-519.81475905,0.00010788,2]
[335540247,1724317841209,-500.0,0.00010788,2]
[335540248,1724317841218,-609.05012565,0.00010788,2]
[335540249,1724317841227,-500.0,0.00010788,2]
[335540250,1724317841237,-500.0,0.00010788,2]
[335540251,1724317841246,-150.0,0.00010788,2]
[335540252,1724317841255,-150.0,0.00010788,2]
[335540253,1724317841265,-500.0,0.00010788,2]
[335540254,1724317841277,-500.0,0.00010788,2]
[335540255,1724317841287,-500.0,0.00010788,2]
[335540256,1724317841296,-500.0,0.00010788,2]
[335540257,1724317841305,-500.0,0.00010788,2]
[335540258,1724317841315,-500.0,0.00010788,2]
[335540259,1724317841324,-500.0,0.00010788,2]
[335540260,1724317841333,-500.0,0.00010788,2]
[335540261,1724317841346,-500.0,0.00010788,2]
[335540262,1724317841360,-500.0,0.00010788,2]
[335540263,1724317841374,-500.0,0.00010788,2]
[335540264,1724317841389,-500.0,0.00010788,2]
[335540265,1724317841399,-500.0,0.00010788,2]
[335540266,1724317841410,-509.55020011,0.00010788,2]
[335540267,1724317841423,-500.0,0.00010788,2]
[335540268,1724317841435,-500.0,0.00010788,2]
[335540269,1724317841449,-500.0,0.00010788,2]
[335540270,1724317841462,-337.66883333,0.00010788,2]
[335540271,1724317841474,-511.43968234,0.00010788,2]
[335540272,1724317841489,-519.3916431,0.00010788,2]
[335540273,1724317841501,-500.0,0.00010788,2]
[335540274,1724317841515,-512.13057101,0.00010788,2]
[335540275,1724317841527,-500.0,0.00010788,2]
[335540276,1724317841539,-500.0,0.00010788,2]
[335540277,1724317841550,-500.0,0.00010788,2]
[335540278,1724317841563,-500.0,0.00010788,2]
[335540279,1724317841577,-500.0,0.00010788,2]
[335540280,1724317841590,-518.16436766,0.00010788,2]
[335540281,1724317841602,-500.0,0.00010788,2]
[335540282,1724317841615,-504.75,0.00010788,2]
[335540283,1724317841625,-506.07026136,0.00010788,2]
[335540284,1724317841636,-594.76,0.00010788,2]
[335540285,1724317841648,-594.76,0.00010788,2]
[335540286,1724317841661,-500.0,0.00010788,2]
[335540287,1724317841674,-516.12261658,0.00010788,2]
[335540288,1724317841685,-500.0,0.00010788,2]
[335540289,1724317841697,-500.0,0.00010788,2]
[335540290,1724317841709,-267.74,0.00010788,2]
[335540291,1724317841722,-505.32208907,0.00010788,2]
[335540292,1724317841735,-507.3688284,0.00010788,2]
[335540293,1724317841750,-500.0,0.00010788,2]
[335540294,1724317841760,-500.0,0.00010788,2]
[335540295,1724317841770,-504.59300217,0.00010788,2]
[335540296,1724317841781,-500.0,0.00010788,2]
[335540297,1724317841790,-320.11493614,0.00010788,2]
[335540298,1724317841802,-513.49608817,0.00010788,2]
[335540299,1724317841815,-500.0,0.00010788,2]
[335540300,1724317841826,-500.0,0.00010788,2]
[335540301,1724317841838,-500.0,0.00010788,2]
[335540302,1724317841848,-505.93074478,0.00010788,2]
[335540303,1724317841861,-508.92956297,0.00010788,2]
[335540304,1724317841872,-500.0,0.00010788,2]
[335540305,1724317841886,-259.40803769,0.00010788,2]
[335540306,1724317841899,-507.70937416,0.00010788,2]
[335540307,1724317841909,-500.0,0.00010788,2]
[335540308,1724317841919,-350.35732967,0.00010788,2]
[335540309,1724317841930,-508.95447681,0.00010788,2]
[335540310,1724317841941,-506.158391,0.00010788,2]
[335540311,1724317841953,-311.4624742,0.00010788,2]
[335540312,1724317841965,-509.20302501,0.00010788,2]
[335540313,1724317841977,-547.32,0.00010788,2]
[335540314,1724317841990,-547.32,0.00010788,2]
[335540315,1724317842001,-388.96582831,0.00010788,2]
[335540316,1724317842012,-504.75390698,0.00010788,2]
[335540317,1724317842023,-500.0,0.00010788,2]
[335540318,1724317842034,-498.82715947,0.00010788,2]
[335540319,1724317842045,-500.0,0.00010788,2]
[335540320,1724317842056,-500.0,0.00010788,2]
[335540321,1724317842067,-503.12164498,0.00010788,2]
[335540322,1724317842078,-500.0,0.00010788,2]
[335540323,1724317842089,-500.0,0.00010788,2]
[335540324,1724317842100,-500.0,0.00010788,2]
[335540325,1724317842112,-506.70168606,0.00010788,2]
[335540326,1724317842123,-500.0,0.00010788,2]
[335540327,1724317842134,-500.0,0.00010788,2]
[335540328,1724317842145,-500.0,0.00010788,2]
[335540329,1724317842156,-498.86179023,0.00010788,2]
[335540330,1724317842167,-500.0,0.00010788,2]
[335540331,1724317842178,-500.0,0.00010788,2]
[335540332,1724317842189,-500.0,0.00010788,2]
[335540333,1724317842201,-500.0,0.00010788,2]
[335540334,1724317842211,-500.0,0.00010788,2]
[335540335,1724317842223,-344.83240398,0.00010788,2]
[335540336,1724317842233,-500.0,0.00010788,2]
[335540337,1724317842244,-234.678356,0.00010788,2]
[335540338,1724317842255,-5239.47,0.00010788,2]
[335540339,1724317842267,-500.0,0.00010788,2]
[335540340,1724317842279,-500.0,0.00010788,2]
[335540341,1724317842289,-500.0,0.00010788,2]
[335540342,1724317842301,-500.0,0.00010788,2]
[335540343,1724317842313,-500.0,0.00010788,2]
[335540344,1724317842323,-500.0,0.00010788,2]
[335540345,1724317842335,-502.47045458,0.00010788,2]
[335540346,1724317842345,-502.8236243,0.00010788,2]
[335540347,1724317842358,-515.88,0.00010788,2]
[335540348,1724317842370,-500.0,0.00010788,2]
[335540349,1724317842381,-500.0,0.00010788,2]
[335540350,1724317842391,-511.28246397,0.00010788,2]
[335540351,1724317842403,-512.11767805,0.00010788,2]
[335540352,1724317842414,-576.2556283,0.00010788,2]
[335540353,1724317842425,-505.9755464,0.00010788,2]
[335540354,1724317842436,-500.0,0.00010788,2]
[335540355,1724317842447,-500.0,0.00010788,2]
[335540356,1724317842458,-507.05443822,0.00010788,2]
[335540357,1724317842469,-514.33203774,0.00010788,2]
[335540358,1724317842480,-376.88749303,0.00010788,2]
[335540359,1724317842491,-526.83167224,0.00010788,2]
[335540360,1724317842502,-500.0,0.00010788,2]
[335540361,1724317842513,-500.0,0.00010788,2]
[335540362,1724317842524,-504.0467201,0.00010788,2]
[335540363,1724317842535,-515.12629976,0.00010788,2]
[335540364,1724317842546,-502.94285659,0.00010788,2]
[335540365,1724317842557,-511.89317936,0.00010788,2]
[335540366,1724317842568,-503.89981313,0.00010788,2]
[335540367,1724317842579,-506.42364393,0.00010788,2]
[335540368,1724317842590,-531.19,0.00010788,2]
[335540369,1724317842600,-500.0,0.00010788,2]
[335540370,1724317842611,-531.19,0.00010788,2]
[335540371,1724317842622,-500.0,0.00010788,2]
[335540372,1724317842633,-506.89422534,0.00010788,2]
[335540373,1724317842644,-514.66158844,0.00010788,2]
[335540374,1724317842655,-503.71425705,0.00010788,2]
[335540375,1724317842667,-529.28684998,0.00010788,2]
[335540376,1724317842678,-492.86830927,0.00010788,2]
[335540377,1724317842689,-500.0,0.00010788,2]
[335540378,1724317842700,-500.0,0.00010788,2]
[335540379,1724317842711,-500.0,0.00010788,2]
[335540380,1724317842721,-516.77621069,0.00010788,2]
[335540381,1724317842732,-509.1972071,0.00010788,2]
[335540382,1724317842743,-503.68609451,0.00010788,2]
[335540383,1724317842754,-505.28001355,0.00010788,2]
[335540384,1724317842765,-504.02652196,0.00010788,2]
[335540385,1724317842776,-504.33802208,0.00010788,2]
[335540386,1724317842787,-503.9219876,0.00010788,2]
[335540387,1724317842799,-502.01243477,0.00010788,2]
[335540388,1724317842810,-513.91969214,0.00010788,2]
[335540389,1724317842821,-500.0,0.00010788,2]
[335540390,1724317842833,-500.0,0.00010788,2]
[335540391,1724317842844,-502.14552431,0.00010788,2]
[335540392,1724317842855,-513.40527949,0.00010788,2]
[335540393,1724317842866,-502.54250997,0.00010788,2]
[335540394,1724317842878,-502.95009668,0.00010788,2]
[335540398,1724317843089,-504.83948933,0.00010788,2]
[335540401,1724317843103,-503.06770411,0.00010788,2]
[335540403,1724317843113,-505.26172993,0.00010788,2]
[335540405,1724317843123,-503.27961939,0.00010788,2]
[335540407,1724317843133,-502.4682739,0.00010788,2]
[335540409,1724317843143,-500.0,0.00010788,2]
[335540411,1724317843152,-500.0,0.00010788,2]
[335540412,1724317843163,-513.70392331,0.00010788,2]
[335540413,1724317843173,-500.0,0.00010788,2]
[335540414,1724317843183,-512.30673835,0.00010788,2]
[335540415,1724317843192,-504.12842733,0.00010788,2]
[335540416,1724317843202,-513.4000465,0.00010788,2]
[335540417,1724317843211,-500.0,0.00010788,2]
[335540418,1724317843221,-500.0,0.00010788,2]
[335540419,1724317843232,-513.5704042,0.00010788,2]
[335540421,1724317843242,-506.52437871,0.00010788,2]
[335540423,1724317843252,-528.46916617,0.00010788,2]
[335540424,1724317843262,-507.31772925,0.00010788,2]
[335540426,1724317843272,-505.57449568,0.00010788,2]
[335540428,1724317843285,-528.17709291,0.00010788,2]
[335540430,1724317843294,-500.0,0.00010788,2]
[335540432,1724317843303,-509.8170672,0.00010788,2]
[335540433,1724317843313,-500.0,0.00010788,2]
[335540435,1724317843322,-481.86546211,0.00010788,2]
[335540437,1724317843332,-500.0,0.00010788,2]
[335540438,1724317843341,-507.68695075,0.00010788,2]
[335540440,1724317843351,-500.0,0.00010788,2]
[335540442,1724317843361,-508.88137241,0.00010788,2]
[335540444,1724317843371,-500.0,0.00010788,2]
[335540445,1724317843381,-518.08951613,0.00010788,2]
[335540447,1724317843390,-474.70060558,0.00010788,2]
[335540449,1724317843399,-500.0,0.00010788,2]
[335540450,1724317843409,-525.05176186,0.00010788,2]
[335540451,1724317843418,-506.43383878,0.00010788,2]
[335540452,1724317843427,-505.50085176,0.00010788,2]
[335540453,1724317843437,-500.0,0.00010788,2]
[335540454,1724317843446,-533.06625485,0.00010788,2]
[335540455,1724317843455,-512.80734908,0.00010788,2]
[335540456,1724317843464,-506.67510895,0.00010788,2]
[335540457,1724317843474,-553.65246869,0.00010788,2]
[335540458,1724317843483,-629.00855767,0.00010788,2]
[335540460,1724317843492,-501.36226293,0.00010788,2]
[335540461,1724317843502,-500.0,0.00010788,2]
[335540462,1724317843511,-513.33318541,0.00010788,2]
[335540463,1724317843520,-500.56468324,0.00010788,2]
[335540464,1724317843529,-500.0,0.00010788,2]
[335540465,1724317843538,-522.26177544,0.00010788,2]
[335540466,1724317843547,-538.10611482,0.00010788,2]
[335540467,1724317843557,-502.53178117,0.00010788,2]
[335540468,1724317843566,-500.0,0.00010788,2]
[335540469,1724317843575,-287.90609083,0.00010788,2]
[335540470,1724317843585,-501.7158013,0.00010788,2]
[335540471,1724317843594,-500.0,0.00010788,2]
[335540472,1724317843603,-425.494169,0.00010788,2]
[335540473,1724317843612,-503.42965404,0.00010788,2]
[335540474,1724317843622,-500.0,0.00010788,2]
[335540475,1724317843631,-515.13626123,0.00010788,2]
[335540476,1724317843640,-634.08789178,0.00010788,2]
[335540477,1724317843650,-480.95882706,0.00010788,2]
[335540478,1724317843659,-503.40875302,0.00010788,2]
[335540479,1724317843669,-500.0,0.00010788,2]
[335540481,1724317843678,-500.75152338,0.00010788,2]
[335540483,1724317843687,-513.72461731,0.00010788,2]
[335540484,1724317843696,-500.0,0.00010788,2]
[335540485,1724317843705,-526.44193565,0.00010788,2]
[335540486,1724317843714,-517.01735705,0.00010788,2]
[335540487,1724317843723,-523.44324269,0.00010788,2]
[335540488,1724317843733,-500.0,0.00010788,2]
[335540489,1724317843742,-504.19030652,0.00010788,2]
[335540490,1724317843751,-512.40103583,0.00010788,2]
[335540491,1724317843760,-500.0,0.00010788,2]
[335540492,1724317843770,-505.35636094,0.00010788,2]
[335540493,1724317843779,-500.0,0.00010788,2]
[335540494,1724317843788,-500.0,0.00010788,2]
[335540495,1724317843797,-513.81680592,0.00010788,2]
[335540497,1724317843807,-500.0,0.00010788,2]
[335540499,1724317843816,-507.24246433,0.00010788,2]
[335540500,1724317843826,-507.88117123,0.00010788,2]
[335540501,1724317843835,-502.05315546,0.00010788,2]
[335540502,1724317843844,-506.38175655,0.00010788,2]
[335540503,1724317843853,-242.06681472,0.00010788,2]
[335540504,1724317843862,-529.45885164,0.00010788,2]
[335540505,1724317843872,-526.73086269,0.00010788,2]
[335540506,1724317843881,-500.0,0.00010788,2]
[335540507,1724317843890,-500.0,0.00010788,2]
[335540508,1724317843900,-515.08220725,0.00010788,2]
[335540509,1724317843909,-500.0,0.00010788,2]
[335540510,1724317843919,-504.37170426,0.00010788,2]
[335540511,1724317843928,-510.44416073,0.00010788,2]
[335540512,1724317843938,-512.48908029,0.00010788,2]
[335540513,1724317843947,-500.0,0.00010788,2]
[335540514,1724317843957,-500.0,0.00010788,2]
[335540515,1724317843966,-511.55350772,0.00010788,2]
[335540516,1724317843975,-500.0,0.00010788,2]
[335540517,1724317843985,-514.748847,0.00010788,2]
[335540518,1724317843994,-510.95048721,0.00010788,2]
[335540519,1724317844003,-500.0,0.00010788,2]
[335540520,1724317844013,-500.0,0.00010788,2]
[335540521,1724317844022,-513.74644521,0.00010788,2]
[335540522,1724317844031,-508.82074473,0.00010788,2]
[335540523,1724317844041,-500.0,0.00010788,2]
[335540524,1724317844050,-500.0,0.00010788,2]
[335540525,1724317844059,-500.0,0.00010788,2]
[335540526,1724317844068,-503.99928219,0.00010788,2]
[335540527,1724317844078,-500.0,0.00010788,2]
[335540528,1724317844087,-503.37529749,0.00010788,2]
[335540529,1724317844096,-500.0,0.00010788,2]
[335540530,1724317844106,-500.0,0.00010788,2]
[335540531,1724317844115,-524.14009154,0.00010788,2]
[335540532,1724317844125,-500.0,0.00010788,2]
[335540533,1724317844134,-500.0,0.00010788,2]
[335540534,1724317844143,-500.0,0.00010788,2]
[335540535,1724317844153,-516.92615872,0.00010788,2]
[335540536,1724317844162,-500.0,0.00010788,2]
[335540537,1724317844171,-500.0,0.00010788,2]
[335540538,1724317844180,-500.0,0.00010788,2]
[335540539,1724317844189,-508.24461561,0.00010788,2]
[335540540,1724317844198,-500.0,0.00010788,2]
[335540541,1724317844207,-537.49859197,0.00010788,2]
[335540542,1724317844217,-507.48277081,0.00010788,2]
[335540543,1724317844226,-500.0,0.00010788,2]
[335540544,1724317844235,-505.98927483,0.00010788,2]
[335540545,1724317844245,-400.0,0.00010788,2]
[335540546,1724317844254,-523.9195397,0.00010788,2]
[335540547,1724317844264,-408.5685758,0.00010788,2]
[335540548,1724317844274,-1634.57,0.00010788,2]
[335540549,1724317844287,-1634.57,0.00010788,2]
[335540550,1724317844296,-538.06754524,0.00010788,2]
[335540551,1724317844305,-500.0,0.00010788,2]
[335540552,1724317844315,-500.0,0.00010788,2]
[335540553,1724317844325,-500.0,0.00010788,2]
[335540554,1724317844335,-524.30292415,0.00010788,2]
[335540555,1724317844344,-500.0,0.00010788,2]
[335540556,1724317844356,-500.0,0.00010788,2]
[335540557,1724317844366,-502.41381342,0.00010788,2]
[335540558,1724317844376,-500.0,0.00010788,2]
[335540559,1724317844386,-301.33145727,0.00010788,2]
[335540560,1724317844395,-547.6665194,0.00010788,2]
[335540561,1724317844404,-505.17067012,0.00010788,2]
[335540562,1724317844414,-500.0,0.00010788,2]
[335540563,1724317844423,-503.79322104,0.00010788,2]
[335540564,1724317844432,-500.0,0.00010788,2]
[335540565,1724317844443,-500.0,0.00010788,2]
[335540566,1724317844452,-500.0,0.00010788,2]
[335540567,1724317844462,-513.10450432,0.00010788,2]
[335540568,1724317844471,-500.0,0.00010788,2]
[335540569,1724317844480,-515.59149235,0.00010788,2]
[335540570,1724317844489,-500.0,0.00010788,2]
[335540571,1724317844498,-513.86248064,0.00010788,2]
[335540572,1724317844508,-533.68869432,0.00010788,2]
[335540573,1724317844517,-500.0,0.00010788,2]
[335540574,1724317844527,-500.0,0.00010788,2]
[335540575,1724317844536,-526.38690955,0.00010788,2]
[335540576,1724317844545,-500.0,0.00010788,2]
[335540577,1724317844555,-500.0,0.00010788,2]
[335540578,1724317844563,-359.9632252,0.00010788,2]
[335540579,1724317844573,-500.0,0.00010788,2]
[335540580,1724317844582,-500.0,0.00010788,2]
[335540581,1724317844591,-505.29209047,0.00010788,2]
[335540582,1724317844600,-539.21291828,0.00010788,2]
[335540583,1724317844610,-504.5465455,0.00010788,2]
[335540584,1724317844620,-511.78196336,0.00010788,2]
[335540585,1724317844629,-520.44556324,0.00010788,2]
[335540586,1724317844639,-501.76523179,0.00010788,2]
[335540587,1724317844648,-505.32382666,0.00010788,2]
[335540588,1724317844658,-500.0,0.00010788,2]
[335540589,1724317844668,-500.0,0.00010788,2]
[335540590,1724317844678,-204.2684263,0.00010788,2]
[335540591,1724317844688,-516.22612081,0.00010788,2]
[335540592,1724317844697,-500.0,0.00010788,2]
[335540593,1724317844707,-500.0,0.00010788,2]
[335540594,1724317844716,-521.64562342,0.00010788,2]
[335540595,1724317844725,-511.99838395,0.00010788,2]
[335540596,1724317844734,-500.0,0.00010788,2]
[335540597,1724317844743,-500.0,0.00010788,2]
[335540598,1724317844752,-500.0,0.00010788,2]
[335540599,1724317844762,-500.0,0.00010788,2]
[335540600,1724317844771,-489.11119016,0.00010788,2]
[335540601,1724317844781,-523.88922149,0.00010788,2]
[335540602,1724317844790,-519.26793673,0.00010788,2]
[335540603,1724317844800,-523.89650398,0.00010788,2]
[335540604,1724317844810,-500.0,0.00010788,2]
[335540605,1724317844820,-507.6149202,0.00010788,2]
[335540606,1724317844830,-500.0,0.00010788,2]
[335540607,1724317844840,-524.36,0.00010788,2]
[335540608,1724317844849,-500.0,0.00010788,2]
[335540609,1724317844860,-525.65213034,0.00010788,2]
[335540610,1724317844870,-500.0,0.00010788,2]
[335540611,1724317844879,-500.0,0.00010788,2]
[335540612,1724317844889,-500.0,0.00010788,2]
[335540613,1724317844897,-500.0,0.00010788,2]
[335540614,1724317844906,-528.7519319,0.00010788,2]
[335540615,1724317844916,-508.17083778,0.00010788,2]
[335540616,1724317844926,-500.0,0.00010788,2]
[335540617,1724317844935,-500.0,0.00010788,2]
[335540618,1724317844944,-500.0,0.00010788,2]
[335540619,1724317844953,-500.0,0.00010788,2]
[335540620,1724317844963,-509.86801587,0.00010788,2]
[335540621,1724317844972,-525.86142835,0.00010788,2]
[335540622,1724317844981,-476.29375007,0.00010788,2]
[335540623,1724317844990,-500.0,0.00010788,2]
[335540624,1724317844999,-500.0,0.00010788,2]
[335540625,1724317845008,-500.0,0.00010788,2]
[335540626,1724317845017,-500.0,0.00010788,2]
[335540627,1724317845027,-500.0,0.00010788,2]
[335540628,1724317845035,-500.0,0.00010788,2]
[335540629,1724317845045,-514.12271481,0.00010788,2]
[335540630,1724317845054,-500.0,0.00010788,2]
[335540631,1724317845064,-500.0,0.00010788,2]
[335540632,1724317845073,-500.0,0.00010788,2]